bitfinex-derivatives/quotes_BTCF0:USTF0_20241103
["timestamp","ask_amount","ask_price","bid_price","bid_amount"]
[1730602586650,0.073348,68192.0,68191.0,0.002]
[1730602586971,0.073348,68192.0,68191.0,0.001]
[1730602587849,0.065348,68192.0,68191.0,0.002]
[1730602593259,0.3608,68195.0,68187.0,0.073352]
[1730602593459,0.087348,68192.0,68191.0,0.002]
[1730602593851,0.014,68192.0,68191.0,0.075349]
[1730602594456,0.7224,68195.0,68194.0,0.073345]
[1730602594457,0.0008,68195.0,68194.0,0.073345]
[1730602594771,0.36300021,68205.0,68204.0,0.073335]
[1730602595566,0.36300021,68205.0,68199.0,0.14928]
[1730602595776,0.36300021,68205.0,68201.0,0.073338]
[1730602595955,0.36300021,68205.0,68192.0,0.1013]
[1730602595956,0.43633421,68205.0,68196.0,0.14928]
[1730602596153,0.3608,68199.0,68196.0,0.14928]
[1730602596854,0.3608,68199.0,68198.0,0.05854609]
[1730602597054,0.43414,68199.0,68198.0,0.05854609]
[1730602597555,0.3608,68199.0,68196.0,0.04390325]
[1730602597759,0.3608,68199.0,68190.0,0.22482976]
[1730602597760,0.3608,68199.0,68194.0,0.04390325]
[1730602597950,0.3608,68199.0,68190.0,0.22482976]
[1730602597951,0.3608,68199.0,68193.0,0.04390325]
[1730602598154,0.79494,68199.0,68198.0,0.001]
[1730602598362,0.80694,68199.0,68198.0,0.001]
[1730602599067,0.44614,68199.0,68198.0,0.001]
[1730602599767,0.44814,68199.0,68198.0,0.001]
[1730602599966,0.80894,68199.0,68198.0,0.001]
[1730602600470,0.80694,68199.0,68198.0,0.001]
[1730602600671,1.24882,68199.0,68198.0,0.002]
[1730602602469,0.80894,68199.0,68198.0,0.002]
[1730602603065,0.44814,68199.0,68198.0,0.075341]
[1730602603866,0.80894,68199.0,68198.0,0.002]
[1730602604168,1.24882,68199.0,68198.0,0.002]
[1730602604554,1.39679832,68199.0,68190.0,0.04390325]
[1730602604870,1.39679832,68199.0,68185.0,0.04390325]
[1730602604871,0.3608,68191.0,68185.0,0.04390325]
[1730602605172,0.073355,68185.0,68184.0,0.04390325]
[1730602605474,0.3608,68186.0,68184.0,0.04391871]
[1730602605675,0.073355,68185.0,68184.0,0.04391871]
[1730602606172,0.073355,68185.0,68180.0,0.13190609]
[1730602606173,0.073356,68184.0,68183.0,0.04391871]
[1730602607066,0.001,68185.0,68179.0,0.05854609]
[1730602607067,0.073357,68183.0,68182.0,0.04391871]
[1730602607654,0.073361,68180.0,68179.0,0.05854609]
[1730602607867,0.434161,68180.0,68179.0,0.05854609]
[1730602608375,0.424161,68180.0,68179.0,0.05854609]
[1730602608670,0.073362,68179.0,68178.0,0.05854609]
[1730602608882,0.073367,68174.0,68173.0,0.07304811]
[1730602609065,0.073367,68174.0,68170.0,0.00088]
[1730602609066,0.073368,68173.0,68172.0,0.05855921]
[1730602609765,0.073368,68173.0,68171.0,0.05855921]
[1730602609963,0.073368,68173.0,68172.0,0.05855921]
[1730602610163,0.073368,68173.0,68171.0,0.05855921]
[1730602610372,0.073369,68172.0,68171.0,0.05855921]
[1730602610571,0.07337,68171.0,68169.0,0.05855921]
[1730602610767,0.3618,68174.0,68169.0,0.05855921]
[1730602610971,0.073371,68170.0,68168.0,0.07557319]
[1730602611567,0.3608,68174.0,68171.0,0.07337]
[1730602611768,0.001,68173.0,68172.0,0.007]
[1730602612068,0.001,68173.0,68172.0,0.080369]
[1730602612567,0.001,68173.0,68172.0,0.22834732]
[1730602612973,0.3608,68174.0,68172.0,0.073369]
[1730602613375,0.003,68173.0,68172.0,0.074369]
[1730602614083,0.3608,68174.0,68173.0,0.073368]
[1730602614374,0.073368,68173.0,68172.0,0.001]
[1730602615078,0.085368,68173.0,68172.0,0.002]
[1730602615758,0.088368,68173.0,68172.0,0.002]
[1730602621571,0.015,68173.0,68172.0,0.075369]
[1730602621791,0.015,68173.0,68172.0,0.002]
[1730602621984,0.088368,68173.0,68172.0,0.002]
[1730602623083,0.015,68173.0,68172.0,0.22334732]
[1730602624072,0.015,68173.0,68172.0,0.24612721]
[1730602624978,0.015,68173.0,68172.0,0.075369]
[1730602625186,0.088368,68173.0,68172.0,0.002]
[1730602626177,0.015,68173.0,68172.0,0.002]
[1730602626379,0.015,68173.0,68172.0,0.075369]
[1730602626683,0.015,68173.0,68172.0,0.11925839]
[1730602626884,0.015,68173.0,68172.0,0.075369]
[1730602627086,0.00220081,68184.0,68172.0,0.1046]
[1730602627292,0.00220081,68184.0,68183.0,0.073357]
[1730602627589,0.073344,68196.0,68183.0,0.073357]
[1730602627880,0.073344,68196.0,68192.0,0.073347]
[1730602628282,0.073344,68196.0,68190.0,0.14797832]
[1730602628283,0.3608,68199.0,68190.0,0.14797832]
[1730602629177,0.3608,68199.0,68191.0,0.073349]
[1730602629382,0.073335,68204.0,68191.0,0.073349]
[1730602629577,0.073336,68203.0,68198.0,0.073341]
[1730602629890,0.073336,68203.0,68199.0,0.07334]
[1730602630273,0.36300021,68205.0,68197.0,0.14797832]
[1730602630486,0.36300021,68205.0,68201.0,0.073337]
[1730602630983,0.36300021,68205.0,68197.0,0.14797832]
[1730602631383,0.00220021,68205.0,68204.0,0.073335]
[1730602631591,0.00220021,68205.0,68202.0,0.1039]
[1730602632290,0.00220021,68205.0,68204.0,0.073335]
[1730602633983,0.00220021,68205.0,68204.0,0.074335]
[1730602634388,0.38295692,68224.0,68204.0,0.001]
[1730602634575,0.38295692,68224.0,68204.0,0.074334]
[1730602634576,0.434129,68210.0,68204.0,0.074334]
[1730602634883,0.01,68205.0,68204.0,0.075334]
[1730602635286,0.083334,68205.0,68204.0,0.002]
[1730602635496,0.01,68205.0,68204.0,0.075335]
[1730602636377,0.01,68210.0,68204.0,0.002]
[1730602636585,0.01,68210.0,68209.0,0.58204592]
[1730602636992,0.36299934,68224.0,68223.0,0.073314]
[1730602637288,0.00219934,68224.0,68223.0,0.073314]
[1730602637497,0.00219934,68224.0,68223.0,0.22123092]
[1730602638779,0.009,68224.0,68223.0,0.074314]
[1730602639189,0.009,68224.0,68223.0,0.216314]
[1730602639386,0.3608,68237.0,68223.0,0.37723092]
[1730602639693,0.00219883,68238.0,68236.0,0.0733]
[1730602639989,0.00219883,68238.0,68237.0,0.073299]
[1730602640190,0.00219883,68238.0,68237.0,0.22121592]
[1730602640496,0.3608,68241.0,68233.0,0.3608]
[1730602640690,0.3608,68241.0,68239.0,0.073297]
[1730602640691,0.434095,68241.0,68239.0,0.073297]
[1730602640884,0.3608,68241.0,68239.0,0.073297]
[1730602641384,0.073291,68245.0,68239.0,0.073296]
[1730602641695,0.073292,68244.0,68239.0,0.073296]
[1730602641984,0.0936111,68243.0,68239.0,0.0294369]
[1730602642193,0.09358748,68242.0,68239.0,0.0294369]
[1730602642394,0.09358748,68241.0,68239.0,0.0304369]
[1730602642686,0.073292,68244.0,68239.0,0.0304369]
[1730602642886,0.073292,68244.0,68239.0,0.0294369]
[1730602643091,0.073292,68244.0,68239.0,0.0314369]
[1730602643285,0.073292,68244.0,68240.0,0.073296]
[1730602643696,0.09276668,68243.0,68240.0,0.073296]
[1730602643888,0.09276668,68242.0,68241.0,0.073295]
[1730602644493,0.04292673,68242.0,68241.0,0.073295]
[1730602644695,0.04292673,68248.0,68239.0,0.14985111]
[1730602644889,0.04292673,68248.0,68247.0,0.22113911]
[1730602644890,0.09280514,68248.0,68247.0,0.22113911]
[1730602645087,0.04292673,68248.0,68247.0,0.22113911]
[1730602645304,0.04336863,68251.0,68250.0,0.073285]
[1730602645481,0.00219859,68252.0,68251.0,0.073284]
[1730602645694,0.04528151,68252.0,68251.0,0.073284]
[1730602647098,0.04528151,68252.0,68251.0,0.074284]
[1730602647782,0.04528151,68252.0,68251.0,0.001]
[1730602647981,0.04528151,68252.0,68251.0,0.002]
[1730602649090,0.09586191,68252.0,68251.0,0.002]
[1730602649487,0.07548159,68252.0,68251.0,0.002]
[1730602650401,0.073295,68241.0,68240.0,0.00096]
[1730602650692,0.3608,68241.0,68230.0,0.15889896]
[1730602650883,0.434102,68235.0,68230.0,0.209987]
[1730602651297,0.073306,68231.0,68230.0,0.13668]
[1730602651683,0.073306,68231.0,68217.0,0.50949111]
[1730602651684,0.07332,68218.0,68217.0,1e-06]
[1730602652001,0.073323,68215.0,68195.0,0.3608]
[1730602652186,0.073353,68187.0,68186.0,0.00016816]
[1730602652382,0.3608,68203.0,68186.0,0.00016816]
[1730602652703,0.3608,68192.0,68180.0,0.3608]
[1730602653286,0.3608,68192.0,68183.0,0.0985884]
[1730602653700,0.434148,68192.0,68184.0,0.073356]
[1730602653898,0.073352,68188.0,68184.0,0.073356]
[1730602654094,0.3608,68192.0,68181.0,0.073359]
[1730602654490,0.073354,68186.0,68181.0,0.073359]
[1730602654688,0.063354,68186.0,68181.0,0.073359]
[1730602654893,0.063354,68186.0,68184.0,0.014]
[1730602655596,0.064354,68186.0,68181.0,0.087359]
[1730602656000,0.002,68186.0,68181.0,0.028]
[1730602656205,0.002,68186.0,68184.0,0.23532318]
[1730602656994,0.002,68186.0,68185.0,0.43996]
[1730602657196,0.3608,68199.0,68194.0,0.073344]
[1730602657689,0.3608,68199.0,68189.0,0.073351]
[1730602657890,0.3608,68199.0,68184.0,0.17077213]
[1730602657891,0.001,68186.0,68184.0,0.17077213]
[1730602658092,0.001,68186.0,68185.0,0.073355]
[1730602658296,0.001,68186.0,68181.0,0.023]
[1730602658996,0.001,68186.0,68181.0,0.009]
[1730602659197,0.002,68186.0,68184.0,0.014]
[1730602659403,0.075355,68186.0,68184.0,0.014]
[1730602659703,0.074355,68186.0,68184.0,0.014]
[1730602659899,0.073355,68186.0,68180.0,0.3608]
[1730602660200,0.001,68186.0,68181.0,0.014]
[1730602660809,0.001,68186.0,68185.0,0.073355]
[1730602661108,0.002,68186.0,68185.0,0.073355]
[1730602661296,0.001,68186.0,68185.0,0.513315]
[1730602661505,0.002,68186.0,68185.0,0.513315]
[1730602662208,0.001,68186.0,68185.0,0.46796]
[1730602662896,0.002,68186.0,68185.0,0.46796]
[1730602663102,0.002,68186.0,68185.0,0.541315]
[1730602664303,0.002,68186.0,68185.0,0.76078059]
[1730602664493,0.3608,68200.0,68199.0,0.07334]
[1730602664693,0.36196,68206.0,68196.0,0.073343]
[1730602664903,0.3608,68206.0,68195.0,0.14872718]
[1730602665103,0.3608,68206.0,68194.0,0.13672]
[1730602665104,0.073339,68200.0,68194.0,0.210065]
[1730602665404,0.43414,68199.0,68194.0,0.210065]
[1730602665606,0.073342,68198.0,68194.0,0.13672]
[1730602665796,0.073344,68195.0,68194.0,0.13672]
[1730602665999,0.08634,68200.0,68194.0,0.13672]
[1730602666201,0.073341,68198.0,68191.0,0.073348]
[1730602666399,0.013,68200.0,68186.0,0.49828]
[1730602666607,0.013,68200.0,68193.0,0.073346]
[1730602667014,0.013,68200.0,68186.0,0.49752]
[1730602667204,0.073343,68197.0,68189.0,0.073351]
[1730602667397,0.073343,68197.0,68196.0,0.001]
[1730602667906,0.073343,68197.0,68194.0,0.001]
[1730602668305,0.084343,68197.0,68193.0,0.001]
[1730602668608,0.091343,68197.0,68196.0,0.001]
[1730602669408,0.091343,68197.0,68194.0,0.002]
[1730602669608,0.018,68197.0,68194.0,0.002]
[1730602669806,0.018,68197.0,68194.0,0.075345]
[1730602670204,0.018,68197.0,68194.0,0.002]
[1730602670398,0.018,68197.0,68196.0,0.22131018]
[1730602670702,0.007,68197.0,68196.0,0.22131018]
[1730602671009,0.02,68197.0,68196.0,0.22331018]
[1730602671313,0.02,68197.0,68196.0,0.88192031]
[1730602671911,0.02,68197.0,68196.0,0.002]
[1730602673303,0.093342,68197.0,68196.0,0.002]
[1730602673703,0.02,68197.0,68196.0,0.002]
[1730602675115,0.02,68197.0,68196.0,0.075343]
[1730602675619,0.02,68197.0,68196.0,0.22331018]
[1730602676118,0.02,68197.0,68196.0,0.36003018]
[1730602676317,0.02,68197.0,68196.0,0.651983]
[1730602676520,0.02,68197.0,68196.0,1.02024048]
[1730602676820,0.3608,68217.0,68211.0,0.073327]
[1730602677117,0.3608,68217.0,68216.0,0.073322]
[1730602677313,0.3608,68217.0,68212.0,0.13672]
[1730602677510,0.434121,68217.0,68212.0,0.210046]
[1730602677712,0.3608,68217.0,68212.0,0.13672]
[1730602677927,0.3728,68217.0,68212.0,0.13672]
[1730602678115,0.3728,68217.0,68216.0,0.073322]
[1730602678419,0.3808,68217.0,68216.0,0.073322]
[1730602678720,0.3808,68217.0,68212.0,0.13672]
[1730602678721,0.3808,68217.0,68212.0,0.13772]
[1730602678914,0.3808,68217.0,68213.0,0.073325]
[1730602679517,0.3808,68217.0,68214.0,0.073323]
[1730602679712,0.3688,68217.0,68215.0,0.073323]
[1730602679910,0.3688,68217.0,68212.0,0.13872]
[1730602679911,0.3698,68217.0,68212.0,0.13872]
[1730602680108,0.3698,68217.0,68213.0,0.13672]
[1730602680321,0.3618,68217.0,68216.0,0.001]
[1730602680615,0.3608,68217.0,68216.0,0.001]
[1730602680825,0.3608,68217.0,68215.0,0.001]
[1730602681006,0.3608,68217.0,68215.0,0.074322]
[1730602681411,0.3608,68217.0,68216.0,0.001]
[1730602681613,0.434121,68217.0,68216.0,0.002]
[1730602681827,0.3608,68217.0,68216.0,0.002]
[1730602682223,0.3608,68217.0,68216.0,0.075322]
[1730602682727,0.00116,68224.0,68223.0,0.073314]
[1730602682919,0.00220011,68229.0,68228.0,0.073309]
[1730602684023,0.3608,68240.0,68228.0,0.3608]
[1730602684222,0.3608,68240.0,68239.0,0.073297]
[1730602684426,0.00219871,68246.0,68239.0,0.209977]
[1730602684818,0.3608,68240.0,68239.0,0.13668]
[1730602685019,0.3608,68244.0,68239.0,0.13668]
[1730602685327,0.3608,68244.0,68230.0,0.13668]
[1730602685328,0.50876718,68244.0,68230.0,0.13668]
[1730602685524,0.50876718,68244.0,68231.0,0.073305]
[1730602685525,0.3608,68237.0,68231.0,0.073305]
[1730602685714,0.0733,68237.0,68232.0,0.13668]
[1730602685910,0.3608,68237.0,68232.0,0.13668]
[1730602686111,0.073303,68233.0,68232.0,0.13668]
[1730602686519,0.073305,68232.0,68228.0,0.074309]
[1730602686718,0.073305,68232.0,68229.0,0.13668]
[1730602686920,0.073305,68232.0,68228.0,0.073309]
[1730602687129,0.073305,68232.0,68229.0,0.13668]
[1730602687327,0.4341,68237.0,68229.0,0.13668]
[1730602687531,0.4341,68237.0,68230.0,0.073306]
[1730602687532,0.073301,68236.0,68230.0,0.073306]
[1730602687720,0.001,68232.0,68230.0,0.073306]
[1730602688025,0.001,68232.0,68231.0,0.073306]
[1730602689423,0.00219871,68246.0,68232.0,0.073304]
[1730602689626,0.00219871,68246.0,68238.0,0.073297]
[1730602690329,0.00219871,68246.0,68239.0,0.073297]
[1730602690528,0.00219871,68246.0,68235.0,0.3608]
[1730602690733,0.00219871,68246.0,68241.0,0.073295]
[1730602690921,0.00319871,68246.0,68241.0,0.073295]
[1730602691121,0.00319871,68246.0,68245.0,0.073291]
[1730602691318,0.001,68246.0,68245.0,0.073291]
[1730602692528,0.00219797,68263.0,68244.0,0.14796718]
[1730602692733,0.073273,68262.0,68248.0,0.3608]
[1730602693233,0.073273,68262.0,68254.0,0.073281]
[1730602693432,0.073273,68262.0,68255.0,0.13664]
[1730602694026,0.073273,68262.0,68255.0,0.20992]
[1730602695129,0.073273,68262.0,68255.0,0.13664]
[1730602695333,0.074273,68262.0,68256.0,0.073278]
[1730602695629,0.001,68262.0,68255.0,0.13664]
[1730602695834,0.001,68262.0,68259.0,0.073275]
[1730602696031,0.00219797,68263.0,68255.0,0.13764]
[1730602696332,0.001,68262.0,68261.0,0.073273]
[1730602696847,0.00219797,68263.0,68256.0,0.074278]
[1730602697135,0.001,68262.0,68259.0,0.001]
[1730602698526,0.073278,68257.0,68256.0,0.001]
[1730602699341,0.3608,68260.0,68248.0,0.49744]
[1730602699528,0.434074,68260.0,68259.0,0.002]
[1730602699937,0.434074,68260.0,68259.0,0.001]
[1730602699938,0.873554,68260.0,68259.0,0.001]
[1730602700255,0.074278,68257.0,68256.0,0.002]
[1730602700638,0.074278,68257.0,68256.0,0.001]
[1730602702342,0.073282,68253.0,68250.0,0.073285]
[1730602703530,0.001,68257.0,68250.0,0.074285]
[1730602703531,0.073283,68252.0,68250.0,0.074285]
[1730602703745,0.073284,68251.0,68250.0,0.001]
[1730602705637,0.00216,68253.0,68250.0,0.002]
[1730602705837,0.073283,68252.0,68250.0,0.002]
[1730602706238,0.3608,68253.0,68250.0,0.001]
[1730602706427,0.435084,68251.0,68250.0,0.002]
[1730602706630,0.435084,68251.0,68250.0,0.001]
[1730602706935,0.435084,68251.0,68250.0,0.002]
[1730602707234,0.434084,68251.0,68250.0,0.002]
[1730602707636,0.434084,68251.0,68250.0,0.001]
[1730602707837,0.434084,68251.0,68250.0,0.002]
[1730602708639,0.434084,68251.0,68250.0,0.001]
[1730602708841,0.435084,68251.0,68250.0,0.002]
[1730602710143,0.074284,68251.0,68250.0,0.002]
[1730602710332,0.001,68251.0,68250.0,0.075285]
[1730602712234,0.001,68251.0,68250.0,0.11904362]
[1730602712744,0.001,68251.0,68250.0,0.075285]
[1730602713245,0.001,68251.0,68250.0,0.09760039]
[1730602714345,0.001,68251.0,68250.0,0.23412039]
[1730602715341,0.001,68251.0,68250.0,0.27787901]
[1730602716443,0.001,68251.0,68250.0,0.04588039]
[1730602716637,0.001,68251.0,68250.0,0.13852]
[1730602716839,0.074284,68251.0,68250.0,0.13852]
[1730602717143,0.11860594,68251.0,68250.0,0.002]
[1730602717338,0.074284,68251.0,68250.0,0.002]
[1730602717639,0.11849757,68251.0,68250.0,0.002]
[1730602717839,0.074284,68251.0,68250.0,0.002]
[1730602718431,0.11830031,68251.0,68250.0,0.002]
[1730602718638,0.93820608,68251.0,68250.0,0.002]
[1730602718843,0.86492208,68251.0,68234.0,0.49732]
[1730602719040,0.0733,68237.0,68234.0,0.49732]
[1730602719427,0.0733,68237.0,68236.0,0.0733]
[1730602720628,0.0733,68237.0,68236.0,0.0743]
[1730602720833,0.0733,68237.0,68236.0,0.001]
[1730602721166,0.11715521,68237.0,68236.0,0.001]
[1730602721345,0.0733,68237.0,68236.0,0.001]
[1730602721548,0.11708517,68237.0,68236.0,0.001]
[1730602721853,0.1169971,68237.0,68236.0,0.001]
[1730602722441,0.0763,68237.0,68236.0,0.002]
[1730602723852,0.87674,68237.0,68236.0,0.002]
[1730602724860,0.87674,68237.0,68225.0,0.0021987]
[1730602724861,0.073311,68226.0,68225.0,0.0021987]
[1730602725147,0.434111,68226.0,68225.0,0.0021987]
[1730602725842,0.07332,68218.0,68217.0,0.04388039]
[1730602726052,0.07332,68218.0,68216.0,0.073321]
[1730602726233,0.3608,68226.0,68215.0,0.04388039]
[1730602726234,0.073315,68223.0,68215.0,0.02273405]
[1730602726439,0.073316,68221.0,68219.0,0.073318]
[1730602726739,0.3608,68226.0,68219.0,0.073318]
[1730602727144,0.3608,68226.0,68221.0,0.073315]
[1730602727145,0.073316,68222.0,68221.0,0.073315]
[1730602727850,0.3608,68226.0,68218.0,0.0985474]
[1730602728148,0.073313,68224.0,68222.0,0.073315]
[1730602728539,0.38477969,68226.0,68222.0,0.073315]
[1730602728746,0.073314,68223.0,68222.0,0.073315]
[1730602728949,0.004,68222.0,68221.0,0.001]
[1730602729751,0.073314,68223.0,68218.0,0.0985474]
[1730602729752,0.073314,68223.0,68222.0,0.001]
[1730602731153,0.073314,68223.0,68222.0,0.002]
[1730602731154,0.008,68223.0,68222.0,0.002]
[1730602731340,0.008,68223.0,68222.0,0.074315]
[1730602732347,0.011,68223.0,68222.0,0.075315]
[1730602733448,0.001,68223.0,68222.0,0.075315]
[1730602737752,0.001,68223.0,68222.0,0.22129539]
[1730602738251,0.001,68223.0,68222.0,0.177415]
[1730602738843,0.001,68223.0,68222.0,0.23575982]
[1730602739352,0.001,68223.0,68222.0,0.81187982]
[1730602739547,0.3608,68238.0,68237.0,0.073299]
[1730602739743,0.3608,68238.0,68237.0,0.0985474]
[1730602740057,0.38408119,68247.0,68236.0,0.2097]
[1730602740244,0.38292119,68247.0,68236.0,0.1364]
[1730602740551,0.073294,68243.0,68238.0,0.073298]
[1730602740758,0.073295,68241.0,68238.0,0.073298]
[1730602741049,0.38292119,68247.0,68237.0,0.001]
[1730602741254,0.073298,68238.0,68237.0,0.001]
[1730602741857,0.00419895,68240.0,68237.0,0.0995474]
[1730602742152,0.00419895,68240.0,68239.0,0.073297]
[1730602742545,0.00419895,68240.0,68239.0,0.570497]
[1730602742745,0.073284,68251.0,68247.0,0.073288]
[1730602744148,0.073288,68248.0,68243.0,0.073292]
[1730602744343,0.073288,68248.0,68240.0,0.0985474]
[1730602744344,0.073288,68248.0,68244.0,0.073292]
[1730602744559,0.3608,68254.0,68244.0,0.073292]
[1730602744560,0.073289,68247.0,68244.0,0.073292]
[1730602744762,0.073289,68247.0,68242.0,0.073294]
[1730602744959,0.07329,68246.0,68242.0,0.073294]
[1730602745157,0.1005474,68251.0,68239.0,0.36256]
[1730602745365,0.1005474,68251.0,68243.0,0.001]
[1730602745366,0.3608,68246.0,68243.0,0.001]
[1730602745660,0.073292,68244.0,68243.0,0.001]
[1730602746656,0.3608,68246.0,68243.0,0.001]
[1730602746858,0.3608,68246.0,68244.0,0.073291]
[1730602747660,0.3608,68246.0,68243.0,0.001]
[1730602747853,0.073291,68245.0,68243.0,0.001]
[1730602748165,0.073291,68245.0,68244.0,0.074292]
[1730602748461,0.3608,68254.0,68248.0,0.073287]
[1730602748866,0.3608,68254.0,68250.0,0.073284]
[1730602749048,0.073284,68252.0,68248.0,0.073287]
[1730602749857,0.073284,68252.0,68249.0,0.073286]
[1730602750049,0.073284,68252.0,68250.0,0.001]
[1730602750250,0.3628,68254.0,68250.0,0.001]
[1730602750460,0.3628,68254.0,68253.0,0.073282]
[1730602750655,0.3608,68254.0,68253.0,0.073282]
[1730602751559,0.073284,68251.0,68250.0,0.001]
[1730602752966,0.073292,68244.0,68243.0,0.073292]
[1730602753554,0.3608,68247.0,68239.0,0.3608]
[1730602753758,0.07329,68246.0,68245.0,0.07329]
[1730602753959,0.07329,68246.0,68241.0,0.073295]
[1730602753960,0.073294,68243.0,68241.0,0.073295]
[1730602754165,0.073294,68243.0,68242.0,0.073294]
[1730602754562,0.073296,68240.0,68239.0,0.3608]
[1730602755472,0.073296,68240.0,68233.0,0.073303]
[1730602755473,0.3608,68240.0,68233.0,0.073303]
[1730602755659,0.434102,68234.0,68233.0,0.073303]
[1730602756161,0.3608,68234.0,68224.0,0.0985474]
[1730602756369,0.3608,68234.0,68223.0,0.3608]
[1730602756558,0.073307,68230.0,68229.0,0.073307]
[1730602756754,0.073309,68229.0,68226.0,0.073311]
[1730602757157,0.3628,68234.0,68223.0,0.59281138]
[1730602757364,0.07331,68227.0,68224.0,0.073313]
[1730602757666,0.3608,68234.0,68224.0,0.073313]
[1730602757866,0.3608,68234.0,68223.0,0.53425738]
[1730602757867,0.073307,68230.0,68229.0,0.001]
[1730602758075,0.11775938,68230.0,68229.0,0.001]
[1730602758253,0.55743938,68230.0,68229.0,0.001]
[1730602758461,0.073313,68224.0,68223.0,0.014]
[1730602758668,0.434113,68224.0,68223.0,0.014]
[1730602759259,0.434113,68224.0,68222.0,0.00219885]
[1730602759260,0.073314,68223.0,68222.0,0.00219885]
[1730602759474,0.073314,68223.0,68215.0,0.1364]
[1730602759475,0.36196,68224.0,68216.0,0.073322]
[1730602759669,0.073322,68217.0,68216.0,0.073322]
[1730602760066,0.3608,68218.0,68206.0,0.176932]
[1730602760264,0.073326,68212.0,68206.0,0.1036]
[1730602760477,0.073326,68212.0,68210.0,0.073328]
[1730602760862,0.073326,68212.0,68206.0,0.1036]
[1730602760863,0.073326,68212.0,68211.0,0.434127]
[1730602761377,0.0962,68220.0,68211.0,0.4733474]
[1730602761560,0.07332,68218.0,68215.0,0.073323]
[1730602761759,0.07332,68218.0,68216.0,0.073321]
[1730602761971,0.43412,68218.0,68216.0,0.073321]
[1730602762380,0.07332,68218.0,68216.0,0.073321]
[1730602762962,0.073315,68222.0,68219.0,0.073318]
[1730602763771,0.073317,68221.0,68217.0,0.0985474]
[1730602763968,0.02240722,68227.0,68216.0,0.001]
[1730602764172,0.073317,68220.0,68219.0,0.001]
[1730602764866,0.073317,68220.0,68219.0,0.002]
[1730602765568,0.6116244,68220.0,68219.0,0.002]
[1730602766270,0.073317,68220.0,68219.0,0.002]
[1730602766479,0.003,68220.0,68219.0,0.3628]
[1730602766778,0.003,68220.0,68219.0,0.075319]
[1730602766975,0.3608,68230.0,68229.0,0.073308]
[1730602768177,0.3608,68230.0,68227.0,0.0952]
[1730602768681,0.3608,68230.0,68229.0,0.073308]
[1730602769475,0.3638,68230.0,68229.0,0.074308]
[1730602769686,0.3638,68230.0,68229.0,0.075308]
[1730602769876,0.3608,68230.0,68229.0,0.075308]
[1730602770083,0.3638,68230.0,68229.0,0.075308]
[1730602770384,0.3638,68230.0,68229.0,0.074308]
[1730602770677,0.3638,68230.0,68229.0,0.075308]
[1730602771070,0.437107,68230.0,68229.0,0.002]
[1730602773282,0.9753344,68230.0,68229.0,0.002]
[1730602773678,1.2753344,68230.0,68213.0,0.0984]
[1730602773880,1.2753344,68230.0,68212.0,0.073326]
[1730602773881,0.073325,68213.0,68212.0,0.073326]
[1730602775877,0.073325,68213.0,68212.0,0.087326]
[1730602776584,0.073325,68213.0,68212.0,0.101326]
[1730602776792,0.02299081,68226.0,68212.0,0.028]
[1730602776976,0.073321,68217.0,68216.0,0.073321]
[1730602777172,0.0985474,68228.0,68212.0,0.028]
[1730602777375,0.00219863,68241.0,68227.0,0.0985474]
[1730602777583,0.00219863,68241.0,68240.0,0.0985474]
[1730602777784,0.00219863,68241.0,68240.0,0.1718434]
[1730602778202,0.3608,68245.0,68240.0,0.0985474]
[1730602778486,0.3608,68245.0,68244.0,0.073292]
[1730602778987,0.434083,68253.0,68247.0,0.073288]
[1730602779290,0.073285,68250.0,68246.0,0.0985474]
[1730602779474,0.434082,68253.0,68247.0,0.073288]
[1730602779685,0.3608,68253.0,68250.0,0.073285]
[1730602779975,0.3648,68253.0,68250.0,0.073285]
[1730602780180,0.3648,68253.0,68251.0,0.073284]
[1730602780379,0.004,68253.0,68251.0,0.073284]
[1730602780780,0.004,68253.0,68247.0,0.312548]
[1730602780989,0.077282,68253.0,68247.0,0.312548]
[1730602781291,0.078282,68253.0,68251.0,0.001]
[1730602781596,0.005,68253.0,68251.0,0.001]
[1730602781794,0.001,68253.0,68251.0,0.001]
[1730602782115,0.005,68253.0,68252.0,0.073283]
[1730602783085,0.00219838,68255.0,68248.0,0.0973]
[1730602783290,0.00219838,68255.0,68254.0,0.073281]
[1730602785478,0.00219838,68255.0,68252.0,0.002]
[1730602785888,0.00219838,68255.0,68250.0,0.073285]
[1730602786089,0.00719838,68255.0,68254.0,0.002]
[1730602786479,0.92205799,68255.0,68254.0,0.001]
[1730602786694,0.90415285,68255.0,68252.0,0.001]
[1730602786881,0.073282,68253.0,68252.0,0.002]
[1730602787090,0.11854161,68253.0,68252.0,0.002]
[1730602787276,0.11854161,68253.0,68238.0,0.073297]
[1730602787277,0.073295,68241.0,68239.0,0.13612]
[1730602787484,0.073295,68241.0,68238.0,0.073297]
[1730602788082,0.3608,68245.0,68235.0,0.13612]
[1730602788083,0.3608,68239.0,68235.0,0.13612]
[1730602788388,0.3608,68239.0,68236.0,0.0733]
[1730602788389,0.0733,68237.0,68236.0,0.0733]
[1730602788590,0.073302,68235.0,68232.0,0.073304]
[1730602788785,0.3608,68239.0,68238.0,0.001]
[1730602788978,0.434097,68239.0,68238.0,0.001]
[1730602789199,0.873737,68239.0,68238.0,0.001]
[1730602789502,0.873737,68239.0,68231.0,0.073306]